bitfinex/quotes_SOLUSD_20241122
["timestamp","ask_amount","ask_price","bid_price","bid_amount"]
[1732246497656,0.1,262.07,261.96,23.776884]
[1732246497830,0.1,262.06,261.96,23.776884]
[1732246498020,0.1,262.05,261.89,4.92630318]
[1732246498222,0.1,262.04,261.82,4.92630318]
[1732246498445,0.1,262.03,261.83,5.72874923]
[1732246498748,0.1,262.03,261.84,4.92630318]
[1732246498945,0.1,262.02,261.85,5.72874923]
[1732246499552,0.1,262.02,261.87,23.776884]
[1732246499948,0.1,262.02,261.87,28.70318718]
[1732246500127,0.1,262.02,261.91,23.776884]
[1732246500328,12.3675,262.09,261.94,20.0]
[1732246500329,0.1,262.01,261.94,20.0]
[1732246500527,0.1,262.01,261.96,20.0]
[1732246501148,0.1,262.08,261.96,5.72874923]
[1732246501448,0.1,262.07,262.0,23.776884]
[1732246501651,0.1,262.07,262.01,20.0]
[1732246502159,0.1,262.06,261.8,2.5]
[1732246502452,0.1,262.05,261.91,4.92630318]
[1732246502651,0.1,262.04,261.91,4.92630318]
[1732246503548,0.1,262.04,261.92,20.0]
[1732246503747,0.1,262.04,261.84,24.92630318]
[1732246503957,0.1,262.03,261.78,5.49895215]
[1732246504140,38.47031407,262.09,261.78,5.49895215]
[1732246504141,0.1,262.02,261.78,4.92630318]
[1732246504855,0.1,262.01,261.78,11.22785002]
[1732246505030,0.1,262.0,261.79,5.72874923]
[1732246505229,0.1,262.0,261.8,5.49886575]
[1732246505429,0.1,262.08,261.81,5.72874923]
[1732246505725,0.1,262.08,261.82,5.49887734]
[1732246505930,0.1,262.08,261.84,20.0]
[1732246506236,0.1,262.07,261.86,20.0]
[1732246506749,0.1,262.07,261.87,24.92630318]
[1732246506953,0.1,262.07,261.87,30.65505241]
[1732246507158,0.1,262.07,261.89,20.0]
[1732246507360,12.7769,262.17,261.96,11.39]
[1732246507649,2.5,262.41,261.91,12.4097]
[1732246507650,30.2459,262.31,262.1,42.98068571]
[1732246507853,12.7769,262.35,262.1,42.98068571]
[1732246507854,12.7769,262.35,262.15,22.5]
[1732246508061,0.1,262.41,262.2,23.776884]
[1732246508229,30.3459,262.42,262.22,23.776884]
[1732246508428,0.1,262.42,262.26,23.776884]
[1732246508627,0.1,262.42,262.28,23.776884]
[1732246508830,0.1,262.52,262.32,23.776884]
[1732246509059,0.1,262.51,262.35,20.0]
[1732246509274,17.712885,262.68,262.37,20.0]
[1732246509275,12.8769,262.64,262.37,20.0]
[1732246509554,0.1,262.63,262.39,20.0]
[1732246509762,0.1,262.63,262.4,23.776884]
[1732246509932,0.1,262.63,262.42,23.776884]
[1732246510132,0.1,262.63,262.43,20.0]
[1732246510330,0.1,262.62,262.43,20.0]
[1732246510629,0.1,262.62,262.34,20.0]
[1732246510833,0.1,262.61,262.38,20.0]
[1732246511051,0.1,262.61,262.39,24.3483419]
[1732246511253,0.1,262.61,262.41,23.776884]
[1732246511453,0.1,262.6,262.41,23.776884]
[1732246511841,0.1,262.59,262.41,23.776884]
[1732246512359,0.1,262.63,262.47,23.776884]
[1732246512554,0.1,262.62,262.5,20.0]
[1732246512758,0.1,262.62,262.51,23.776884]
[1732246512952,0.1,262.62,262.52,20.0]
[1732246513142,38.27739057,262.62,262.52,20.0]
[1732246513339,38.17739057,262.6,262.25,2.49999999]
[1732246513530,38.17739057,262.58,262.27,20.0]
[1732246513744,38.17739057,262.56,262.26,10.95677417]
[1732246514058,0.1,262.55,262.27,5.14296984]
[1732246514236,0.1,262.54,262.28,6.30024999]
[1732246514563,0.1,262.53,262.28,6.30024999]
[1732246515355,38.17739057,262.59,262.28,6.30024999]
[1732246515751,50.95429057,262.64,262.33,20.0]
[1732246516054,50.95429057,262.64,262.37,23.776884]
[1732246516256,38.17739057,262.6,262.41,23.776884]
[1732246516568,38.17739057,262.58,262.34,5.72874923]
[1732246516863,38.17739057,262.58,262.35,23.776884]
[1732246517737,38.17739057,262.58,262.37,23.776884]
[1732246517952,38.17739057,262.6,262.38,20.0]
[1732246518156,38.17739057,262.54,262.38,20.0]
[1732246518652,38.17739057,262.54,262.28,5.72874923]
[1732246518653,38.17739057,262.54,262.29,20.0]
[1732246519249,38.17739057,262.56,262.29,20.0]
[1732246519453,38.17739057,262.56,262.33,20.0]
[1732246519639,38.17739057,262.5,262.35,20.0]
[1732246520045,38.17739057,262.5,262.19,0.57172716]
[1732246520245,23.776884,262.57,262.19,0.57172716]
[1732246520246,38.17739057,262.48,262.19,0.57172716]
[1732246520461,38.17739057,262.5,262.19,6.30047639]
[1732246520760,38.17739057,262.46,262.19,6.30047639]
[1732246520963,38.17739057,262.46,262.19,0.57172716]
[1732246521257,38.17739057,262.46,262.2,0.57181237]
[1732246521957,38.17739057,262.48,262.21,23.776884]
[1732246522567,38.17739057,262.42,262.15,0.57183648]
[1732246523065,38.17739057,262.42,262.15,20.57183648]
[1732246523250,38.17739057,262.42,262.15,0.57183648]
[1732246523449,12.8299,262.43,262.15,0.57183648]
[1732246523450,38.17739057,262.4,262.15,0.57183648]
[1732246523637,38.17739057,262.38,262.1,20.95141923]
[1732246523842,38.17739057,262.36,262.06,0.57200246]
[1732246524152,38.17739057,262.32,262.06,0.57200246]
[1732246524356,38.17739057,262.3,262.06,0.57200246]
[1732246524557,2.5,262.33,262.06,0.57200246]
[1732246524745,38.17739057,262.28,261.99,15.230521]
[1732246524941,3.8109,262.4,261.99,15.230521]
[1732246524942,38.17739057,262.3,262.01,0.57224537]
[1732246525243,4.78623738,262.44,262.01,0.57224537]
[1732246525244,38.17739057,262.36,262.02,20.37089884]
[1732246525471,38.17739057,262.38,262.03,5.983]
[1732246525760,38.17739057,262.42,262.05,4.99999999]
[1732246525962,38.17739057,262.42,262.06,14.92490729]
[1732246526342,38.17739057,262.44,262.07,26.276884]
[1732246526543,38.17739057,262.44,262.11,23.776884]
[1732246526758,32.9147,262.45,262.16,20.0]
[1732246527064,32.9147,262.45,262.2,23.776884]
[1732246527267,32.9147,262.45,262.23,20.0]
[1732246527446,32.9147,262.45,262.24,23.776884]
[1732246527762,32.9147,262.45,262.28,23.776884]
[1732246528060,32.9147,262.45,262.29,20.0]
[1732246528750,30.1661,262.55,262.34,23.776884]
[1732246528953,30.1661,262.55,262.36,23.776884]
[1732246529249,13.1857,262.6,262.38,23.776884]
[1732246529457,13.1857,262.6,262.39,20.0]
[1732246529655,38.17739057,262.56,262.41,20.0]
[1732246530170,38.17739057,262.56,262.22,27.575884]
[1732246530352,38.17739057,262.56,262.24,23.776884]
[1732246530558,38.17739057,262.54,262.3,23.776884]
[1732246530852,38.17739057,262.56,262.32,23.776884]
[1732246531249,38.17739057,262.56,262.34,23.776884]
[1732246531447,38.17739057,262.54,262.36,23.776884]
[1732246531649,38.17739057,262.52,262.37,20.0]
[1732246531957,38.17739057,262.54,262.37,20.0]
[1732246532680,23.50400264,262.54,262.37,20.0]
[1732246533352,23.50400264,262.54,262.23,0.57165561]
[1732246533353,23.50400264,262.56,262.39,20.0]
[1732246533548,23.50400264,262.58,262.41,20.0]
[1732246534489,13.1857,262.6,262.25,0.57158513]
[1732246534490,23.50400264,262.53,262.26,23.776884]
[1732246534654,23.50400264,262.53,262.29,20.0]
[1732246534971,23.50400264,262.55,262.32,23.776884]
[1732246535152,23.50400264,262.53,262.35,20.0]
[1732246535352,23.50400264,262.53,262.38,23.776884]
[1732246535653,23.776884,262.59,262.39,20.0]
[1732246535971,23.50400264,262.55,262.4,23.776884]
[1732246536161,23.50400264,262.55,262.41,20.0]
[1732246536366,23.50400264,262.53,262.41,20.0]
[1732246536878,23.50400264,262.53,262.32,23.776884]
[1732246537080,23.50400264,262.53,262.33,20.0]
[1732246537370,23.50400264,262.51,262.36,23.776884]
[1732246537568,23.50400264,262.51,262.35,20.0]
[1732246538067,23.50400264,262.51,262.3,12.3971]
[1732246538274,23.50400264,262.53,262.31,20.0]
[1732246539148,23.50400264,262.55,262.31,20.0]
[1732246539371,23.50400264,262.55,262.33,20.0]
[1732246539552,23.50400264,262.57,262.37,20.0]
[1732246539753,23.50400264,262.57,262.4,23.776884]
[1732246540254,23.50400264,262.57,262.41,20.0]
[1732246540469,23.50400264,262.57,262.43,20.0]
[1732246540775,23.50400264,262.59,262.44,23.776884]
[1732246540982,13.1857,262.7,262.46,23.776884]
[1732246541272,23.50400264,262.74,262.48,43.776884]
[1732246541483,23.50400264,262.72,262.48,43.776884]
[1732246541653,23.50400264,262.68,262.48,43.776884]
[1732246541976,23.50400264,262.66,262.48,43.776884]
[1732246542874,4.81443968,262.75,262.48,43.776884]
[1732246543053,23.50400264,262.73,262.48,43.776884]
[1732246543249,23.50400264,262.74,262.48,43.776884]
[1732246544161,53.67010264,262.76,262.48,43.776884]
[1732246544362,30.1661,262.76,262.48,43.776884]
[1732246544676,53.67010264,262.76,262.48,43.776884]
[1732246545874,20.0,262.75,262.48,43.776884]
[1732246546180,20.0,262.75,262.5,43.776884]
[1732246546677,36.39890264,262.84,262.54,23.776884]
[1732246546869,36.39890264,262.84,262.56,23.776884]
[1732246547172,36.39890264,262.84,262.59,20.0]
[1732246547378,36.39890264,262.84,262.6,23.776884]
[1732246547577,36.39890264,262.84,262.63,20.0]
[1732246548076,36.39890264,262.84,262.15,22.29735584]
[1732246548077,20.0,262.81,262.65,20.0]
[1732246548377,2.5,262.85,262.65,20.0]
[1732246548378,12.8949,263.12,262.73,2.5]
[1732246548555,12.8949,263.12,262.77,23.776884]
[1732246548758,12.8949,263.12,262.79,23.776884]
[1732246548957,12.8949,263.12,262.82,20.0]
[1732246549262,12.8949,263.12,262.84,23.776884]
[1732246549587,19.1955,263.12,262.87,20.0]
[1732246549767,23.776884,263.11,262.88,23.776884]
[1732246550076,20.0,263.1,262.91,20.0]
[1732246550259,20.0,263.1,262.93,20.0]
[1732246550663,69.78269836,263.19,262.96,23.776884]
[1732246550970,31.7728,263.19,262.98,23.776884]
[1732246551169,3.24,263.21,263.0,23.776884]
[1732246551382,3.24,263.21,263.01,20.0]
[1732246551556,3.24,263.21,263.03,20.0]
[1732246552072,3.24,263.21,262.93,0.57020585]
[1732246552264,3.24,263.21,262.98,23.776884]
[1732246552467,3.24,263.21,263.01,20.0]
[1732246552675,3.24,263.21,263.05,20.0]
[1732246553058,20.0,263.16,262.88,12.7852]
[1732246553259,20.0,263.12,262.88,12.7852]
[1732246553561,38.00989836,263.09,262.88,12.7852]
[1732246553756,26.276884,263.11,262.88,12.7852]
[1732246553757,20.0,263.08,262.88,12.7852]
[1732246554374,20.0,263.06,262.88,12.7852]
[1732246554572,20.0,263.04,262.79,30.858]
[1732246555376,20.0,263.06,262.79,30.858]
[1732246555579,20.0,263.06,262.8,23.776884]
[1732246556470,20.0,263.08,262.82,23.776884]
[1732246556668,20.0,263.08,262.85,20.0]
[1732246556868,20.0,263.08,262.88,23.776884]
[1732246557070,20.0,263.08,262.89,20.0]
[1732246557267,20.0,263.08,262.9,23.776884]
[1732246557582,61.78678236,263.07,262.91,20.0]
[1732246557781,61.78678236,263.07,262.79,30.858]
[1732246557782,38.00989836,263.02,262.79,30.858]
[1732246558077,38.00989836,263.0,262.79,30.858]
[1732246558268,38.00989836,262.96,262.79,30.858]
[1732246558477,38.00989836,262.98,262.79,30.858]
[1732246559191,38.00989836,262.98,262.8,43.776884]
[1732246559677,38.00989836,263.0,262.8,43.776884]
[1732246560782,38.00989836,262.98,262.8,43.776884]
[1732246561573,38.00989836,263.0,262.8,43.776884]
[1732246561885,46.276884,262.81,262.62,30.858]
[1732246562062,38.00989836,262.76,262.62,30.858]
[1732246562260,38.00989836,262.84,262.62,30.858]
[1732246562460,38.00989836,262.88,262.62,30.858]
[1732246562771,38.00989836,262.86,262.62,30.858]
[1732246563073,38.00989836,262.83,262.64,23.776884]
[1732246563274,38.00989836,262.83,262.66,23.776884]
[1732246563472,38.00989836,262.81,262.67,20.0]
[1732246563670,38.00989836,262.81,262.66,23.776884]
[1732246563868,38.00989836,262.81,262.62,30.858]
[1732246564263,38.00989836,262.81,262.28,22.79631176]
[1732246564264,64.6677,262.8,262.48,12.7852]
[1732246564466,38.00989836,262.57,262.45,30.858]
[1732246564683,38.00989836,262.63,262.45,30.858]
[1732246564881,20.0,262.62,262.45,30.858]
[1732246565088,38.00989836,262.69,262.45,30.858]
[1732246565272,38.00989836,262.71,262.45,30.858]
[1732246565468,5.0,262.77,262.45,30.858]
[1732246565469,20.0,262.68,262.45,30.858]
[1732246565678,38.00989836,262.67,262.45,30.858]
[1732246565878,38.00989836,262.65,262.45,30.858]
[1732246566064,38.00989836,262.61,262.45,30.858]
[1732246566265,38.00989836,262.65,262.45,30.858]
[1732246566661,38.00989836,262.67,262.45,30.858]
[1732246566867,38.00989836,262.69,262.45,30.858]
[1732246567071,38.00989836,262.67,262.45,30.858]
[1732246567270,38.00989836,262.61,262.45,30.858]
[1732246567472,23.776884,262.69,262.45,30.858]
[1732246567473,38.00989836,262.59,262.45,30.858]
[1732246567664,38.00989836,262.59,262.39,12.7852]
[1732246567893,38.00989836,262.61,262.39,12.7852]
[1732246568269,38.00989836,262.59,262.39,12.7852]
[1732246568609,38.00989836,262.57,262.39,12.7852]
[1732246568973,38.00989836,262.57,262.4,23.776884]
[1732246569177,38.00989836,262.59,262.4,23.776884]
[1732246569383,38.00989836,262.61,262.4,23.776884]
[1732246569696,20.0,262.6,262.4,23.776884]
[1732246570069,20.0,262.58,262.4,23.776884]
[1732246570377,38.00989836,262.53,262.39,12.7852]
[1732246570593,20.0,262.58,262.39,12.7852]
[1732246570890,38.00989836,262.62,262.39,12.7852]
[1732246571067,38.00989836,262.6,262.39,12.7852]
[1732246571268,38.00989836,262.58,262.39,12.7852]
[1732246571469,38.00989836,262.62,262.39,12.7852]
[1732246571685,20.0,262.61,262.39,12.7852]
[1732246572672,20.0,262.61,262.4,23.776884]
[1732246573881,38.00989836,262.64,262.41,20.0]
[1732246574092,38.00989836,262.68,262.44,23.776884]
[1732246574389,3.8058,262.76,262.44,23.776884]
[1732246574390,38.00989836,262.7,262.46,23.776884]
[1732246574589,38.00989836,262.62,262.39,12.7852]
[1732246574771,38.00989836,262.44,262.31,13.1554]
[1732246574970,38.00989836,262.4,262.31,13.1554]
[1732246575183,38.00989836,262.46,262.31,13.1554]
[1732246576487,38.00989836,262.48,262.32,23.776884]
[1732246576888,38.00989836,262.5,262.32,23.776884]
[1732246578076,6.3084,262.58,262.32,23.776884]
[1732246578077,38.00989836,262.52,262.32,23.776884]
[1732246578279,38.00989836,262.54,262.32,23.776884]
[1732246578481,36.5049,262.69,262.35,20.0]
[1732246578783,38.00989836,262.6,262.38,23.776884]
[1732246578976,38.00989836,262.62,262.37,23.776884]
[1732246579481,38.00989836,262.62,262.35,20.0]
[1732246579482,38.00989836,262.56,262.36,23.776884]
[1732246579678,38.00989836,262.54,262.36,23.776884]
[1732246581285,2.5,262.62,262.31,13.1554]
[1732246581286,38.00989836,262.46,262.31,13.1554]
[1732246581604,38.00989836,262.54,262.31,13.1554]
[1732246581899,38.00989836,262.5,262.32,20.0]
[1732246582079,14.3752869,262.66,262.32,20.0]
[1732246582080,38.00989836,262.54,262.32,20.0]
[1732246582499,38.00989836,262.54,262.34,20.0]
[1732246582703,6.307,262.67,262.31,13.1554]
[1732246582704,38.00989836,262.46,262.31,13.1554]
[1732246584081,38.00989836,262.44,262.31,13.1554]
[1732246584475,38.00989836,262.48,262.31,13.1554]
[1732246584785,38.00989836,262.46,262.31,13.1554]
[1732246585181,38.00989836,262.5,262.32,23.776884]
[1732246585406,38.00989836,262.46,262.32,23.776884]
[1732246587093,38.00989836,262.44,262.31,13.1554]
[1732246587283,20.0,262.45,262.31,13.1554]
[1732246587987,20.0,262.47,262.31,13.1554]
[1732246588190,38.00989836,262.52,262.32,23.776884]
[1732246588505,38.00989836,262.55,262.32,23.776884]
[1732246588681,38.00989836,262.53,262.32,23.776884]
[1732246591793,28.315114,262.73,262.33,36.8715]
[1732246592105,38.00989836,262.71,262.4,27.575884]
[1732246592284,38.00989836,262.63,262.4,23.776884]
[1732246592474,2.5,262.79,262.39,23.776884]
[1732246592676,38.00989836,262.72,262.39,23.776884]
[1732246592898,38.00989836,262.72,262.41,23.776884]
[1732246593288,38.00989836,262.7,262.4,27.575884]
[1732246593880,38.00989836,262.68,262.4,27.575884]
[1732246594208,20.0,262.67,262.4,27.575884]
[1732246594383,38.00989836,262.72,262.4,27.575884]
[1732246594699,38.00989836,262.76,262.45,3.799]
[1732246594918,38.00989836,262.76,262.46,23.776884]
[1732246595708,3.8049,262.82,262.45,36.812384]
[1732246595889,3.8049,262.82,262.32,11.39]
[1732246595890,41.81359836,262.9,262.54,23.776884]
[1732246596206,57.01358836,262.9,262.56,23.776884]
[1732246596416,38.00989836,262.92,262.58,33.0725]
[1732246596594,38.00989836,262.9,262.61,23.776884]
[1732246597299,38.00989836,262.86,262.61,23.776884]
[1732246597704,23.776884,262.87,262.61,23.776884]
[1732246598008,38.00989836,262.9,262.61,23.776884]
[1732246598212,38.00989836,262.9,262.63,23.776884]
[1732246598586,38.00989836,262.9,262.61,23.776884]
[1732246599502,20.0,262.93,262.61,28.62069434]
[1732246599812,38.00989836,262.94,262.63,23.776884]
[1732246600011,38.00989836,262.94,262.64,4.84381034]
[1732246600606,3.8022,263.0,262.64,4.84381034]
[1732246600607,38.00989836,263.0,262.67,56.849384]
[1732246600809,38.00989836,263.0,262.69,23.776884]
[1732246601112,38.00989836,263.0,262.71,23.776884]
[1732246601286,15.191666,263.05,262.73,23.776884]
[1732246601287,38.00989836,262.98,262.73,23.776884]
[1732246601488,38.00989836,262.92,262.73,23.776884]
[1732246601983,2.5,263.02,262.73,23.776884]
[1732246601984,38.00989836,262.94,262.73,23.776884]
[1732246602287,20.0,262.93,262.73,23.776884]
[1732246602497,20.0,262.85,262.67,33.0725]
[1732246602903,61.78678236,262.84,262.67,33.0725]
[1732246603106,20.0,262.83,262.67,33.0725]
[1732246604401,20.0,262.81,262.67,33.0725]
[1732246605509,23.776884,262.87,262.67,33.0725]
[1732246605713,20.0,262.86,262.67,33.0725]
[1732246606600,38.00989836,262.84,262.67,33.0725]
[1732246606794,20.0,262.83,262.67,33.0725]
[1732246607203,23.776884,262.84,262.67,33.0725]
[1732246607408,20.0,262.83,262.67,33.0725]
[1732246608005,38.00989836,262.78,262.57,31.9679]
[1732246608200,20.0,262.75,262.58,13.2944]
[1732246610021,38.00989836,262.72,262.58,13.2944]
[1732246610223,38.00989836,262.7,262.58,13.2944]
[1732246610427,20.0,262.67,262.49,13.2944]
[1732246610606,43.776884,262.71,262.49,13.2944]
[1732246610806,20.0,262.69,262.49,13.2944]
[1732246611325,20.0,262.67,262.49,13.2944]
[1732246613219,61.78678236,262.66,262.49,13.2944]
[1732246613422,61.78678236,262.64,262.49,13.2944]
[1732246613651,20.0,262.61,262.49,13.2944]
[1732246617021,23.776884,262.6,262.38,31.9679]
[1732246617212,20.0,262.59,262.4,12.2175]
[1732246621628,23.48767554,262.63,262.4,12.2175]
[1732246621835,15.209151,262.73,262.41,29.43060052]
[1732246622000,23.48767554,262.67,262.41,23.776884]
[1732246622326,23.48767554,262.67,262.4,12.2175]
[1732246622327,23.48767554,262.59,262.4,12.2175]
[1732246623115,23.48767554,262.55,262.4,12.2175]
[1732246623409,20.0,262.58,262.4,12.2175]
[1732246623410,23.48767554,262.51,262.4,12.2175]
[1732246623612,20.0,262.5,262.4,12.2175]
[1732246623832,47.26455954,262.49,262.33,12.2175]
[1732246624037,43.776884,262.46,262.33,12.2175]
[1732246624212,20.0,262.44,262.33,12.2175]
[1732246624910,38.21806495,262.51,262.33,12.2175]
[1732246625112,20.0,262.5,262.33,12.2175]
[1732246625332,23.776884,262.49,262.33,12.2175]
[1732246625523,20.0,262.48,262.33,12.2175]
[1732246626632,23.776884,262.47,262.33,12.2175]
[1732246627009,20.0,262.46,262.33,12.2175]
[1732246627236,20.0,262.44,262.33,12.2175]
[1732246628337,23.776884,262.43,262.33,12.2175]
[1732246629435,23.776884,262.43,262.28,31.4864]
[1732246630536,38.21806495,262.37,262.26,12.9126]
[1732246630832,3.8087,262.55,262.26,12.9126]
[1732246631035,38.21806495,262.51,262.26,12.9126]
[1732246631534,38.21806495,262.49,262.26,12.9126]
[1732246632243,20.0,262.46,262.26,12.9126]
[1732246632417,20.0,262.44,262.26,12.9126]
[1732246632742,23.776884,262.43,262.26,12.9126]
[1732246633546,23.776884,262.39,262.26,12.9126]
[1732246633725,20.0,262.38,262.26,12.9126]
[1732246633935,61.99494895,262.37,262.26,12.9126]
[1732246635633,61.99494895,262.37,262.19,33.3112]
[1732246635634,23.776884,262.32,262.19,33.3112]
[1732246639044,38.21806495,262.31,262.19,33.3112]
[1732246639224,23.776884,262.3,262.19,33.3112]
[1732246639430,38.21806495,262.29,262.17,13.2426]
[1732246639755,23.776884,262.19,262.09,13.2426]
[1732246639963,38.21806495,262.18,262.09,13.2426]
[1732246640132,23.776884,262.17,262.09,13.2426]
[1732246640558,23.776884,262.17,262.03,32.3451]
[1732246640968,23.776884,262.15,262.03,32.3451]
[1732246642546,20.0,262.25,262.04,23.776884]
[1732246643251,38.21806495,262.18,262.03,32.3451]
[1732246643561,38.21806495,262.16,262.03,32.3451]
[1732246643936,23.776884,262.15,262.03,32.3451]
[1732246644252,58.21806495,262.14,262.03,32.3451]
[1732246644453,20.0,262.12,261.92,13.2426]
[1732246644659,23.776884,262.11,261.92,13.2426]
[1732246644861,38.21806495,262.08,261.92,13.2426]
[1732246645054,23.776884,262.07,261.92,13.2426]
[1732246646044,20.0,262.08,261.92,13.2426]
[1732246646349,43.776884,262.13,261.92,13.2426]
[1732246646556,20.0,262.13,261.92,13.2426]
[1732246646936,20.0,262.15,261.92,13.2426]
[1732246647259,23.57179055,262.2,261.93,23.776884]
[1732246648757,20.0,262.19,261.93,23.776884]
[1732246648935,23.57179055,262.23,261.93,23.776884]
[1732246649136,23.57179055,262.25,261.93,28.57896888]
[1732246649370,23.57179055,262.23,261.93,23.776884]
[1732246649833,23.57179055,262.21,261.93,23.776884]
[1732246650238,23.57179055,262.25,261.93,28.57896888]
[1732246650461,23.57179055,262.25,261.95,23.776884]
[1732246650635,23.57179055,262.25,261.92,15.74259999]
[1732246650841,23.57179055,262.23,261.93,23.776884]
[1732246651368,23.57179055,262.21,261.93,23.776884]
[1732246651661,2.5,262.29,261.93,23.776884]
[1732246651662,23.57179055,262.22,261.93,23.776884]
[1732246651864,23.776884,262.2,261.93,23.776884]
[1732246652352,23.776884,262.25,261.97,23.776884]
[1732246652555,23.776884,262.23,261.96,23.776884]
[1732246652758,23.57179055,262.2,261.96,23.776884]
[1732246652949,23.776884,262.19,261.95,31.3041]
[1732246653148,23.776884,262.17,261.95,31.3041]
[1732246654341,23.776884,262.17,261.96,23.776884]
[1732246657769,20.0,262.24,261.96,23.776884]
[1732246657960,20.0,262.24,261.98,23.776884]
[1732246658264,23.57179055,262.25,261.98,23.776884]
[1732246658461,23.57179055,262.25,261.95,31.3041]
[1732246658462,23.57179055,262.23,261.96,23.776884]
[1732246658685,23.57179055,262.21,261.96,23.776884]
[1732246658859,23.57179055,262.19,261.96,23.776884]
[1732246659168,23.776884,262.16,261.96,23.776884]
[1732246659348,23.776884,262.16,261.95,36.08530766]
[1732246659349,47.34867455,262.07,261.95,31.3041]
[1732246660049,23.776884,262.05,261.95,31.3041]
[1732246660964,20.0,262.13,261.95,31.3041]
[1732246661142,23.776884,262.12,261.95,31.3041]
[1732246662454,23.776884,262.1,261.95,31.3041]
[1732246663358,23.776884,262.08,261.95,31.3041]
[1732246663670,23.776884,262.06,261.95,31.3041]
[1732246663967,23.776884,262.06,261.92,13.2426]
[1732246665571,23.776884,262.02,261.92,13.2426]
[1732246667160,23.776884,262.02,261.72,0.57276035]
[1732246667161,20.0,262.01,261.8,5.01235896]
[1732246667365,23.776884,262.0,261.79,12.5067]
[1732246668063,4.83745796,262.06,261.79,12.5067]
[1732246668064,23.776884,262.05,261.79,12.5067]
[1732246668249,23.776884,262.05,261.8,4.70806608]
[1732246668568,23.776884,262.07,261.81,23.776884]
[1732246668769,23.57179055,261.99,261.8,4.70806608]
[1732246668977,23.776884,261.98,261.79,12.5067]
[1732246669160,23.776884,262.0,261.79,12.5067]
[1732246669560,20.0,262.01,261.79,12.5067]
[1732246670075,20.0,262.03,261.8,23.776884]
[1732246670276,23.776884,262.02,261.8,23.776884]
[1732246672074,23.776884,262.02,261.8,28.78510772]
[1732246672267,23.776884,262.04,261.8,28.78510772]
[1732246673377,23.776884,262.02,261.8,28.78510772]
[1732246673960,23.57179055,262.01,261.8,28.78510772]
[1732246674156,23.776884,261.93,261.79,12.5067]
[1732246674684,23.57179055,261.96,261.79,12.5067]
[1732246674859,23.776884,261.95,261.79,12.5067]
[1732246676492,23.57179055,262.02,261.79,12.5067]
[1732246676670,20.0,262.01,261.8,23.776884]
[1732246677384,23.57179055,262.02,261.8,23.776884]
[1732246677777,23.776884,262.01,261.8,23.776884]
[1732246678470,23.57179055,262.04,261.8,23.776884]
[1732246678671,23.57179055,262.08,261.81,9.57417596]
[1732246678877,23.57179055,262.1,261.84,23.776884]
[1732246679079,15.240579,262.13,261.86,23.776884]
[1732246679279,23.57179055,262.12,261.88,23.776884]
[1732246679884,15.240579,262.13,261.9,53.977584]
[1732246680478,23.57179055,262.12,261.9,53.977584]
[1732246681176,23.776884,262.11,261.9,53.977584]
[1732246681871,23.776884,262.07,261.9,30.2007]
[1732246683571,23.776884,262.09,261.9,30.2007]
[1732246683788,23.57179055,262.08,261.9,30.2007]
[1732246683975,23.776884,262.07,261.9,30.2007]
[1732246684772,23.57179055,262.06,261.9,30.2007]
[1732246684969,23.776884,262.07,261.9,30.2007]
[1732246685884,23.57179055,262.06,261.9,30.2007]
[1732246686085,23.57179055,262.08,261.9,30.2007]
[1732246686902,23.57179055,262.04,261.9,30.2007]
[1732246687207,23.776884,262.03,261.9,30.2007]
[1732246687378,23.776884,262.07,261.9,30.2007]
[1732246687695,23.57179055,262.1,261.9,30.2007]